fUST/lending_fUST_20250628
["ID","MTS","AMOUNT","RATE_DAILY","PERIOD"]
[368290137,1751094643811,-460.0,0.00019726,2]
[368290138,1751094643821,-460.0,0.00019726,2]
[368290139,1751094643832,-533.01,0.00019726,2]
[368290140,1751094643841,-590.23712706,0.00019726,2]
[368290141,1751094643851,-460.0,0.00019726,2]
[368290142,1751094643861,-460.0,0.00019726,2]
[368290143,1751094643871,-506.7,0.00019726,2]
[368290144,1751094643880,-2083.95,0.00019726,2]
[368290145,1751094643890,-503.50287125,0.00019736,2]
[368290146,1751094643901,-504.67766264,0.00019736,2]
[368290147,1751094643911,-500.0,0.00019737,2]
[368290148,1751094643920,-239.03922239,0.00019761,2]
[368290149,1751094643930,-274.50680258,0.00019793,2]
[368290150,1751094643939,-500.0,0.00019845,2]
[368290151,1751094643949,-500.0,0.00019861,2]
[368290152,1751094643959,-500.0,0.00019861,2]
[368290153,1751094643969,-500.0,0.00019861,2]
[368290154,1751094643978,-181.09163339,0.00019896,2]
[368290155,1751094643987,-576.05,0.00019899,2]
[368290156,1751094643997,-9950.03549682,0.000199,2]
[368290157,1751094644007,-1844.80252236,0.00019901,2]
[368290158,1751094644018,-501.169435,0.00019924,2]
[368290159,1751094644027,-500.0,0.00019924,2]
[368290160,1751094644037,-576.05,0.00019999,2]
[368290161,1751094644047,-576.05,0.00019999,2]
[368290162,1751094644057,-442.89393582,0.0002,2]
[368290163,1751094644067,-460.0,0.0002,2]
[368290164,1751094644076,-460.0,0.0002,2]
[368290165,1751094644087,-460.0,0.0002,2]
[368290166,1751094644097,-460.0,0.0002,2]
[368290167,1751094644107,-223.20541348,0.0002,2]
[368290168,1751094644118,-463.50923836,0.0002,2]
[368290169,1751094644128,-460.0,0.0002,2]
[368290170,1751094644138,-460.0,0.0002,2]
[368290171,1751094644148,-6894.0,0.0002,2]
[368290172,1751094644159,-823.67,0.0002,2]
[368290173,1751094644168,-460.0,0.0002,2]
[368290174,1751094644179,-460.0,0.0002,2]
[368290175,1751094644189,-460.0,0.0002,2]
[368290176,1751094644198,-460.0,0.0002,2]
[368290177,1751094644207,-460.0,0.0002,2]
[368290178,1751094644217,-320.82,0.0002,2]
[368290179,1751094644226,-460.0,0.0002,2]
[368290180,1751094644235,-460.0,0.0002,2]
[368290181,1751094644245,-460.0,0.0002,2]
[368290182,1751094644254,-460.0,0.0002,2]
[368290183,1751094644263,-460.0,0.0002,2]
[368290184,1751094644273,-460.0,0.0002,2]
[368290185,1751094644282,-460.0,0.0002,2]
[368290186,1751094644291,-162.54,0.0002,2]
[368290187,1751094644301,-460.0,0.0002,2]
[368290188,1751094644310,-170.68688171,0.0002,2]
[368290189,1751094644320,-460.0,0.0002,2]
[368290190,1751094644329,-460.0,0.0002,2]
[368290191,1751094644339,-5301.63,0.0002,2]
[368290192,1751094644348,-1038.0,0.0002,2]
[368290193,1751094644357,-445.34737111,0.0002,2]
[368290194,1751094644366,-393.04653521,0.0002,2]
[368290195,1751094644375,-1699.45,0.0002,2]
[368290196,1751094644385,-460.0,0.0002,2]
[368290197,1751094644394,-1637.92,0.0002,2]
[368290198,1751094644404,-862.06,0.0002,2]
[368290199,1751094644413,-3162.09,0.0002,2]
[368290200,1751094644422,-531.66,0.0002,2]
[368290201,1751094644432,-460.0,0.0002,2]
[368290202,1751094644445,-460.0,0.0002,2]
[368290203,1751094644454,-778.72,0.0002,2]
[368290204,1751094644464,-1633.53,0.0002,2]
[368290205,1751094644474,-460.0,0.0002,2]
[368290206,1751094644483,-460.0,0.0002,2]
[368290207,1751094644493,-2727.76,0.0002,2]
[368290208,1751094644502,-833.98,0.0002,2]
[368290209,1751094644513,-635.12,0.0002,2]
[368290210,1751094644522,-460.0,0.0002,2]
[368290211,1751094644532,-822.76,0.0002,2]
[368290212,1751094644541,-460.0,0.0002,2]
[368290213,1751094644551,-460.0,0.0002,2]
[368290214,1751094644560,-460.0,0.0002,2]
[368290215,1751094644570,-764.45,0.0002,2]
[368290216,1751094644580,-460.0,0.0002,2]
[368290217,1751094644589,-460.0,0.0002,2]
[368290218,1751094644600,-460.0,0.0002,2]
[368290219,1751094644611,-601.84,0.0002,2]
[368290220,1751094644622,-460.0,0.0002,2]
[368290221,1751094644632,-460.0,0.0002,2]
[368290222,1751094644644,-617.3,0.0002,2]
[368290223,1751094644655,-460.0,0.0002,2]
[368290224,1751094644664,-2830.86,0.0002,2]
[368290225,1751094644674,-460.0,0.0002,2]
[368290226,1751094644684,-460.0,0.0002,2]
[368290227,1751094644695,-466.54,0.0002,2]
[368290228,1751094644705,-487.16,0.0002,2]
[368290229,1751094644715,-460.0,0.0002,2]
[368290230,1751094644725,-460.0,0.0002,2]
[368290231,1751094644734,-2150.34,0.0002,2]
[368290232,1751094644744,-492.46961548,0.0002,2]
[368290233,1751094644754,-460.0,0.0002,2]
[368290234,1751094644763,-551.56,0.0002,2]
[368290235,1751094644772,-1076.08,0.0002,2]
[368290236,1751094644782,-460.0,0.0002,2]
[368290237,1751094644792,-460.0,0.0002,2]
[368290238,1751094644802,-421.8078106,0.0002,2]
[368290239,1751094644812,-3405.57,0.0002,2]
[368290240,1751094644821,-460.0,0.0002,2]
[368290241,1751094644831,-460.0,0.0002,2]
[368290242,1751094644841,-460.0,0.0002,2]
[368290243,1751094644851,-2514.69,0.0002,2]
[368290244,1751094644860,-1181.02,0.0002,2]
[368290245,1751094644870,-460.0,0.0002,2]
[368290246,1751094644879,-557.09,0.0002,2]
[368290247,1751094644889,-460.0,0.0002,2]
[368290248,1751094644899,-460.0,0.0002,2]
[368290249,1751094644908,-460.0,0.0002,2]
[368290250,1751094644919,-460.0,0.0002,2]
[368290251,1751094644929,-460.0,0.0002,2]
[368290252,1751094644939,-460.0,0.0002,2]
[368290253,1751094644948,-460.0,0.0002,2]
[368290254,1751094644958,-465.55,0.0002,2]
[368290255,1751094644968,-460.0,0.0002,2]
[368290256,1751094644977,-160.0,0.0002,3]
[368290257,1751094644988,-1418.65,0.0002,2]
[368290258,1751094644998,-493.17,0.0002,2]
[368290259,1751094645008,-460.0,0.0002,2]
[368290260,1751094645017,-2065.34,0.0002,2]
[368290261,1751094645027,-1869.93,0.0002,2]
[368290262,1751094645036,-4376.08,0.0002,2]
[368290263,1751094645046,-463.71,0.0002,2]
[368290264,1751094645055,-460.0,0.0002,2]
[368290265,1751094645065,-507.43720755,0.0002,2]
[368290266,1751094645074,-1857.96,0.0002,2]
[368290267,1751094645083,-460.0,0.0002,2]
[368290268,1751094645093,-747.42,0.0002,2]
[368290269,1751094645102,-992.99,0.0002,2]
[368290270,1751094645113,-659.31,0.0002,2]
[368290271,1751094645122,-2141.39,0.0002,2]
[368290272,1751094645132,-668.97,0.0002,2]
[368290273,1751094645141,-568.17,0.0002,2]
[368290274,1751094645151,-460.0,0.0002,2]
[368290275,1751094645161,-460.0,0.0002,2]
[368290276,1751094645170,-460.0,0.0002,2]
[368290277,1751094645180,-460.0,0.0002,2]
[368290278,1751094645190,-448.43126466,0.0002,2]
[368290279,1751094645199,-506.7,0.0002,2]
[368290280,1751094645208,-2083.95,0.0002,2]
[368290281,1751094645217,-221.63715821,0.00020029,2]
[368290282,1751094645227,-300.0,0.00020029,2]
[368290283,1751094645237,-576.05,0.00020069,2]
[368290284,1751094645246,-514.21082794,0.00020071,2]
[368290285,1751094645256,-2859.0,0.00020078,2]
[368290286,1751094645266,-1000.0,0.00020132,2]
[368290287,1751094645276,-9950.03549666,0.00020141,2]
[368290288,1751094645286,-2861.0,0.00020153,2]
[368290289,1751094645295,-347.664506,0.00020187,2]
[368290290,1751094645305,-503.40974568,0.00020245,2]
[368290291,1751094645315,-179.14702428,0.00020245,2]
[368290292,1751094645324,-443.30882593,0.00020259,2]
[368290293,1751094645334,-1000.0,0.00020262,2]
[368290294,1751094645344,-576.05,0.00020272,2]
[368290295,1751094645354,-576.05,0.00020272,2]
[368290296,1751094645363,-576.05,0.00020272,2]
[368290297,1751094645373,-576.05,0.00020272,2]
[368290299,1751094645383,-576.05,0.00020272,2]
[368290300,1751094645392,-576.05,0.00020272,2]
[368290301,1751094645402,-576.26,0.00020272,2]
[368290302,1751094645412,-460.0,0.00020273,2]
[368290303,1751094645421,-474.7230794,0.00020273,2]
[368290304,1751094645431,-460.0,0.00020273,2]
[368290305,1751094645445,-460.0,0.00020273,2]
[368290306,1751094645454,-823.67,0.00020273,2]
[368290307,1751094645464,-460.0,0.00020273,2]
[368290308,1751094645473,-194.20416739,0.00020273,2]
[368290309,1751094645483,-500.0,0.00020273,2]
[368290310,1751094645492,-498.19645371,0.00020273,2]
[368290311,1751094645502,-460.0,0.00020273,2]
[368290312,1751094645511,-460.0,0.00020273,2]
[368290313,1751094645521,-460.0,0.00020273,2]
[368290314,1751094645530,-460.0,0.00020273,2]
[368290315,1751094645540,-504.45535336,0.00020273,2]
[368290316,1751094645550,-500.0,0.00020273,2]
[368290317,1751094645559,-550.25,0.00020273,2]
[368290318,1751094645568,-206.09494749,0.00020273,2]
[368290319,1751094645578,-460.0,0.00020273,2]
[368290320,1751094645587,-460.0,0.00020273,2]
[368290321,1751094645597,-460.0,0.00020273,2]
[368290322,1751094645607,-5301.63,0.00020273,2]
[368290323,1751094645616,-1038.0,0.00020273,2]
[368290324,1751094645626,-460.0,0.00020273,2]
[368290325,1751094645635,-1699.45,0.00020273,2]
[368290326,1751094645645,-1637.92,0.00020273,2]
[368290328,1751094645655,-862.06,0.00020273,2]
[368290330,1751094645665,-3162.09,0.00020273,2]
[368290332,1751094645677,-531.66,0.00020273,2]
[368290334,1751094645687,-460.0,0.00020273,2]
[368290336,1751094645696,-460.0,0.00020273,2]
[368290337,1751094645706,-778.72,0.00020273,2]
[368290338,1751094645715,-1633.53,0.00020273,2]
[368290339,1751094645725,-460.0,0.00020273,2]
[368290340,1751094645735,-460.0,0.00020273,2]
[368290341,1751094645745,-2727.76,0.00020273,2]
[368290342,1751094645754,-833.98,0.00020273,2]
[368290343,1751094645764,-635.12,0.00020273,2]
[368290344,1751094645774,-460.0,0.00020273,2]
[368290345,1751094645784,-822.76,0.00020273,2]
[368290346,1751094645794,-460.0,0.00020273,2]
[368290347,1751094645804,-460.0,0.00020273,2]
[368290348,1751094645814,-460.0,0.00020273,2]
[368290349,1751094645824,-764.45,0.00020273,2]
[368290350,1751094645835,-271.42337978,0.00020273,2]
[368290352,1751094645846,-460.0,0.00020273,2]
[368290353,1751094645855,-460.0,0.00020273,2]
[368290354,1751094645865,-601.84,0.00020273,2]
[368290355,1751094645989,-460.0,0.00020273,2]
[368290356,1751094645999,-487.76071805,0.00020273,2]
[368290357,1751094646008,-617.3,0.00020273,2]
[368290358,1751094646018,-460.0,0.00020273,2]
[368290359,1751094646028,-2830.86,0.00020273,2]
[368290360,1751094646038,-460.0,0.00020273,2]
[368290361,1751094646047,-460.0,0.00020273,2]
[368290362,1751094646057,-466.54,0.00020273,2]
[368290363,1751094646067,-487.16,0.00020273,2]
[368290364,1751094646076,-460.0,0.00020273,2]
[368290365,1751094646086,-460.0,0.00020273,2]
[368290366,1751094646095,-2150.34,0.00020273,2]
[368290367,1751094646105,-460.0,0.00020273,2]
[368290368,1751094646115,-1076.08,0.00020273,2]
[368290369,1751094646124,-551.56,0.00020273,2]
[368290370,1751094646134,-460.0,0.00020273,2]
[368290371,1751094646143,-460.0,0.00020273,2]
[368290372,1751094646153,-3405.57,0.00020273,2]
[368290373,1751094646163,-460.0,0.00020273,2]
[368290374,1751094646173,-460.0,0.00020273,2]
[368290375,1751094646182,-460.0,0.00020273,2]
[368290376,1751094646191,-2514.69,0.00020273,2]
[368290377,1751094646200,-1181.02,0.00020273,2]
[368290378,1751094646210,-460.0,0.00020273,2]
[368290379,1751094646219,-557.09,0.00020273,2]
[368290380,1751094646228,-460.0,0.00020273,2]
[368290381,1751094646238,-460.0,0.00020273,2]
[368290382,1751094646247,-460.0,0.00020273,2]
[368290383,1751094646256,-460.0,0.00020273,2]
[368290384,1751094646266,-460.0,0.00020273,2]
[368290385,1751094646275,-303.47581799,0.00020273,2]
[368290386,1751094646285,-460.0,0.00020273,2]
[368290387,1751094646294,-465.55,0.00020273,2]
[368290388,1751094646305,-1418.65,0.00020273,2]
[368290389,1751094646315,-493.17,0.00020273,2]
[368290390,1751094646326,-2065.34,0.00020273,2]
[368290391,1751094646335,-1869.93,0.00020273,2]
[368290392,1751094646344,-460.0,0.00020273,2]
[368290393,1751094646353,-4376.08,0.00020273,2]
[368290394,1751094646363,-463.71,0.00020273,2]
[368290395,1751094646372,-460.0,0.00020273,2]
[368290396,1751094646381,-1857.96,0.00020273,2]
[368290397,1751094646391,-460.0,0.00020273,2]
[368290398,1751094646400,-747.42,0.00020273,2]
[368290399,1751094646410,-992.99,0.00020273,2]
[368290400,1751094646419,-659.31,0.00020273,2]
[368290401,1751094646428,-2141.39,0.00020273,2]
[368290402,1751094646439,-668.97,0.00020273,2]
[368290403,1751094646449,-568.17,0.00020273,2]
[368290404,1751094646458,-460.0,0.00020273,2]
[368290405,1751094646467,-460.0,0.00020273,2]
[368290406,1751094646476,-460.0,0.00020273,2]
[368290407,1751094646485,-460.0,0.00020273,2]
[368290408,1751094646495,-506.7,0.00020273,2]
[368290409,1751094646504,-2083.95,0.00020273,2]
[368290410,1751094646513,-2859.0,0.00020278,2]
[368290411,1751094646522,-1000.0,0.00020285,2]
[368290412,1751094646532,-160.0,0.00020293,2]
[368290413,1751094646542,-214.95397287,0.00020293,2]
[368290414,1751094646551,-160.0,0.00020293,2]
[368290415,1751094646560,-160.0,0.00020293,2]
[368290416,1751094646570,-847.18566335,0.00020293,2]
[368290417,1751094646579,-12564.78152626,0.00020293,2]
[368290418,1751094646588,-160.0,0.00020293,2]
[368290419,1751094646597,-837.06984471,0.00020293,2]
[368290420,1751094646607,-230.28494567,0.00020293,2]
[368290421,1751094646616,-213.78848551,0.00020293,2]
[368290422,1751094646626,-160.0,0.00020293,2]
[368290423,1751094646635,-160.0,0.00020293,2]
[368290424,1751094646645,-160.0,0.00020294,2]
[368290425,1751094646655,-160.0,0.00020294,2]
[368290426,1751094646664,-160.0,0.00020294,2]
[368290427,1751094646674,-300.0,0.00020364,2]
[368290428,1751094646683,-847.18566335,0.00020383,3]
[368290429,1751094646692,-160.0,0.00020383,3]
[368290430,1751094646702,-213.78848551,0.00020383,3]
[368290431,1751094646711,-9950.03549666,0.00020383,3]
[368290432,1751094646720,-12564.78152626,0.00020383,3]
[368290433,1751094646730,-288.66192114,0.00020409,2]
[368290434,1751094646739,-512.10269403,0.00020409,2]
[368290435,1751094646748,-226.77747217,0.00020409,2]
[368290436,1751094646758,-168.0,0.00020439,2]
[368290437,1751094646768,-1844.80252236,0.00020451,2]
[368290438,1751094646778,-761.8,0.00020538,3]
[368290439,1751094646788,-380.9,0.00020538,3]
[368290440,1751094646797,-151.0,0.00020547,2]
[368290441,1751094646807,-460.0,0.00020547,2]
[368290442,1751094646816,-460.0,0.00020547,2]
[368290443,1751094646826,-460.0,0.00020547,2]
[368290444,1751094646836,-823.67,0.00020547,2]
[368290445,1751094646845,-460.0,0.00020547,2]
[368290446,1751094646856,-460.0,0.00020547,2]
[368290447,1751094646866,-518.95672766,0.00020547,2]
[368290448,1751094646875,-460.0,0.00020547,2]
[368290449,1751094646885,-460.0,0.00020547,2]
[368290450,1751094646895,-460.0,0.00020547,2]
[368290451,1751094646905,-460.0,0.00020547,2]
[368290452,1751094646914,-5301.63,0.00020547,2]
[368290453,1751094646923,-460.0,0.00020547,2]
[368290454,1751094646933,-1038.0,0.00020547,2]
[368290455,1751094646943,-460.0,0.00020547,2]
[368290456,1751094646953,-1699.45,0.00020547,2]
[368290457,1751094646963,-1637.92,0.00020547,2]
[368290458,1751094646973,-862.06,0.00020547,2]
[368290459,1751094646982,-3162.09,0.00020547,2]
[368290460,1751094646991,-531.66,0.00020547,2]
[368290461,1751094647001,-456.02306291,0.00020547,2]
[368290462,1751094647010,-460.0,0.00020547,2]
[368290463,1751094647020,-778.72,0.00020547,2]
[368290464,1751094647029,-1633.53,0.00020547,2]
[368290465,1751094647039,-460.0,0.00020547,2]
[368290466,1751094647048,-460.0,0.00020547,2]
[368290467,1751094647057,-2727.76,0.00020547,2]
[368290468,1751094647067,-833.98,0.00020547,2]
[368290469,1751094647076,-635.12,0.00020547,2]
[368290470,1751094647085,-460.0,0.00020547,2]
[368290471,1751094647095,-822.76,0.00020547,2]
[368290472,1751094647104,-460.0,0.00020547,2]
[368290473,1751094647113,-460.0,0.00020547,2]
[368290474,1751094647123,-460.0,0.00020547,2]
[368290475,1751094647133,-764.45,0.00020547,2]
[368290476,1751094647143,-460.0,0.00020547,2]
[368290477,1751094647153,-603.09,0.00020547,2]
[368290478,1751094647162,-601.84,0.00020547,2]
[368290479,1751094647171,-460.0,0.00020547,2]
[368290480,1751094647180,-617.3,0.00020547,2]
[368290481,1751094647189,-460.0,0.00020547,2]
[368290482,1751094647199,-2830.86,0.00020547,2]
[368290483,1751094647208,-460.0,0.00020547,2]
[368290484,1751094647217,-460.0,0.00020547,2]
[368290485,1751094647226,-466.54,0.00020547,2]
[368290486,1751094647235,-487.16,0.00020547,2]
[368290487,1751094647244,-460.0,0.00020547,2]
[368290488,1751094647254,-460.0,0.00020547,2]
[368290489,1751094647263,-2150.34,0.00020547,2]
[368290490,1751094647272,-460.0,0.00020547,2]
[368290491,1751094647281,-1076.08,0.00020547,2]
[368290492,1751094647290,-551.56,0.00020547,2]
[368290493,1751094647299,-460.0,0.00020547,2]
[368290494,1751094647308,-460.0,0.00020547,2]
[368290495,1751094647317,-460.0,0.00020547,2]
[368290496,1751094647326,-3405.57,0.00020547,2]
[368290497,1751094647336,-460.0,0.00020547,2]
[368290498,1751094647345,-460.0,0.00020547,2]
[368290499,1751094647354,-2514.69,0.00020547,2]
[368290500,1751094647363,-1181.02,0.00020547,2]
[368290501,1751094647373,-460.0,0.00020547,2]
[368290502,1751094647382,-557.09,0.00020547,2]
[368290503,1751094647393,-460.0,0.00020547,2]
[368290504,1751094647402,-460.0,0.00020547,2]
[368290505,1751094647411,-415.743074,0.00020547,2]
[368290506,1751094647421,-460.0,0.00020547,2]
[368290507,1751094647430,-460.0,0.00020547,2]
[368290508,1751094647443,-460.0,0.00020547,2]
[368290509,1751094647452,-465.55,0.00020547,2]
[368290510,1751094647462,-1418.65,0.00020547,2]
[368290511,1751094647472,-493.17,0.00020547,2]
[368290512,1751094647481,-2065.34,0.00020547,2]
[368290513,1751094647491,-1869.93,0.00020547,2]
[368290514,1751094647500,-460.0,0.00020547,2]
[368290515,1751094647509,-4376.08,0.00020547,2]
[368290516,1751094647518,-463.71,0.00020547,2]
[368290517,1751094647528,-460.0,0.00020547,2]
[368290518,1751094647537,-1857.96,0.00020547,2]
[368290519,1751094647546,-460.0,0.00020547,2]
[368290520,1751094647555,-747.42,0.00020547,2]
[368290521,1751094647565,-992.99,0.00020547,2]
[368290522,1751094647574,-659.31,0.00020547,2]
[368290523,1751094647583,-2141.39,0.00020547,2]
[368290524,1751094647593,-668.97,0.00020547,2]
[368290525,1751094647603,-568.17,0.00020547,2]
[368290526,1751094647612,-460.0,0.00020547,2]
[368290527,1751094647621,-460.0,0.00020547,2]
[368290528,1751094647630,-500.0,0.00020547,14]
[368290529,1751094647640,-460.0,0.00020547,2]
[368290530,1751094647649,-460.0,0.00020547,2]
[368290531,1751094647659,-506.7,0.00020547,2]
[368290532,1751094647670,-2083.95,0.00020547,2]
[368290533,1751094647679,-3797.86,0.000206,2]
[368290534,1751094647689,-9950.03549666,0.00020624,3]
[368290535,1751094647698,-1500.0,0.0002068,2]
[368290536,1751094647708,-151.0,0.000207,4]
[368290537,1751094647717,-160.3588391,0.00020738,2]
[368290538,1751094647727,-5000.0,0.00020738,2]
[368290539,1751094647737,-500.0,0.00020738,2]
[368290540,1751094647746,-666.0,0.00020738,2]
[368290541,1751094647756,-500.0,0.00020738,2]
[368290542,1751094647766,-500.0,0.00020738,2]
[368290543,1751094647775,-500.0,0.00020738,2]
[368290544,1751094647784,-207.4,0.00020738,2]
[368290545,1751094647794,-503.93739225,0.00020738,2]
[368290546,1751094647803,-500.0,0.00020738,2]
[368290547,1751094647812,-2001.05393756,0.00020738,2]
[368290548,1751094647822,-500.0,0.00020738,2]
[368290549,1751094647831,-500.0,0.00020738,2]
[368290550,1751094647840,-500.0,0.00020738,2]
[368290551,1751094647849,-500.0,0.00020738,2]
[368290552,1751094647858,-500.0,0.00020738,2]
[368290553,1751094647868,-500.0,0.00020738,2]
[368290554,1751094647877,-500.0,0.00020738,2]
[368290555,1751094647886,-500.0,0.00020738,2]
[368290556,1751094647896,-500.0,0.00020738,2]
[368290557,1751094647905,-500.0,0.00020738,2]
[368290558,1751094647914,-500.0,0.00020738,2]
[368290559,1751094647923,-500.0,0.00020738,2]
[368290560,1751094647933,-500.0,0.00020738,2]
[368290561,1751094647942,-154.31315253,0.00020738,2]
[368290562,1751094647951,-246.59496078,0.00020738,2]
[368290563,1751094647960,-25000.0,0.00020738,2]
[368290564,1751094647969,-9311.42036975,0.00020738,2]
[368290565,1751094647979,-212.9,0.00020789,3]
[368290566,1751094647988,-690.642,0.00020793,2]
[368290567,1751094647997,-1500.0,0.0002081,2]
[368290568,1751094648006,-237.37638163,0.00020821,2]
[368290569,1751094648016,-460.0,0.00020821,2]
[368290570,1751094648025,-460.0,0.00020821,2]
[368290571,1751094648034,-823.67,0.00020821,2]
[368290572,1751094648044,-460.0,0.00020821,2]
[368290573,1751094648053,-460.0,0.00020821,2]
[368290574,1751094648062,-460.0,0.00020821,2]
[368290575,1751094648073,-454.77441597,0.00020821,2]
[368290576,1751094648082,-460.0,0.00020821,2]
[368290577,1751094648091,-460.0,0.00020821,2]
[368290578,1751094648101,-5301.63,0.00020821,2]
[368290579,1751094648110,-460.0,0.00020821,2]
[368290580,1751094648120,-1038.0,0.00020821,2]
[368290581,1751094648129,-460.0,0.00020821,2]
[368290582,1751094648139,-1699.45,0.00020821,2]
[368290583,1751094648148,-1637.92,0.00020821,2]
[368290584,1751094648157,-862.06,0.00020821,2]
[368290585,1751094648167,-3162.09,0.00020821,2]
[368290586,1751094648176,-531.66,0.00020821,2]
[368290587,1751094648186,-460.0,0.00020821,2]
[368290588,1751094648195,-778.72,0.00020821,2]
[368290589,1751094648205,-1633.53,0.00020821,2]
[368290590,1751094648214,-460.0,0.00020821,2]
[368290591,1751094648224,-460.0,0.00020821,2]
[368290592,1751094648233,-2727.76,0.00020821,2]
[368290593,1751094648242,-833.98,0.00020821,2]
[368290594,1751094648251,-635.12,0.00020821,2]
[368290595,1751094648261,-460.0,0.00020821,2]
[368290596,1751094648270,-822.76,0.00020821,2]
[368290597,1751094648280,-425.67611252,0.00020821,2]
[368290598,1751094648289,-460.0,0.00020821,2]
[368290599,1751094648298,-460.0,0.00020821,2]
[368290600,1751094648308,-764.45,0.00020821,2]
[368290601,1751094648317,-460.0,0.00020821,2]
[368290602,1751094648327,-601.84,0.00020821,2]
[368290603,1751094648336,-460.0,0.00020821,2]
[368290604,1751094648345,-617.3,0.00020821,2]
[368290605,1751094648354,-460.0,0.00020821,2]
[368290606,1751094648364,-2830.86,0.00020821,2]
[368290607,1751094648373,-460.0,0.00020821,2]
[368290608,1751094648382,-460.0,0.00020821,2]
[368290609,1751094648391,-466.54,0.00020821,2]
[368290610,1751094648401,-487.16,0.00020821,2]
[368290611,1751094648410,-601.28832938,0.00020821,2]
[368290612,1751094648419,-460.0,0.00020821,2]
[368290613,1751094648428,-2150.34,0.00020821,2]
[368290614,1751094648438,-460.0,0.00020821,2]
[368290615,1751094648448,-1076.08,0.00020821,2]
[368290616,1751094648457,-551.56,0.00020821,2]
[368290617,1751094648466,-460.0,0.00020821,2]
[368290618,1751094648475,-180.27084496,0.00020821,2]
[368290619,1751094648484,-460.0,0.00020821,2]
[368290620,1751094648494,-3405.57,0.00020821,2]
[368290621,1751094648504,-460.0,0.00020821,2]
[368290622,1751094648513,-460.0,0.00020821,2]
[368290623,1751094648522,-2514.69,0.00020821,2]
[368290624,1751094648534,-1181.02,0.00020821,2]
[368290625,1751094648544,-460.0,0.00020821,2]
[368290626,1751094648554,-557.09,0.00020821,2]
[368290627,1751094648563,-460.0,0.00020821,2]
[368290628,1751094648573,-460.0,0.00020821,2]
[368290629,1751094648582,-460.0,0.00020821,2]
[368290630,1751094648592,-460.0,0.00020821,2]
[368290631,1751094648601,-460.0,0.00020821,2]
[368290632,1751094648612,-465.55,0.00020821,2]
[368290633,1751094648621,-1418.65,0.00020821,2]
[368290634,1751094648630,-493.17,0.00020821,2]
[368290635,1751094648639,-2065.34,0.00020821,2]
[368290636,1751094648649,-460.0,0.00020821,2]
[368290637,1751094648658,-1869.93,0.00020821,2]
[368290638,1751094648668,-4376.08,0.00020821,2]
[368290639,1751094648677,-463.71,0.00020821,2]
[368290640,1751094648687,-460.0,0.00020821,2]
[368290641,1751094648696,-1857.96,0.00020821,2]
[368290642,1751094648707,-460.0,0.00020821,2]
[368290643,1751094648717,-747.42,0.00020821,2]